bitfinex/quotes_BTCUSD_20241025
["timestamp","ask_amount","ask_price","bid_price","bid_amount"]
[1729838581112,0.56799446,67658.0,67657.0,0.000824]
[1729838581321,0.57799446,67658.0,67657.0,0.000824]
[1729838583468,0.57800171,67658.0,67657.0,0.000824]
[1729838586600,0.57800877,67658.0,67657.0,0.000824]
[1729838588227,0.57801834,67658.0,67657.0,0.000824]
[1729838593053,0.57804657,67658.0,67657.0,0.000824]
[1729838598755,0.56804657,67658.0,67657.0,0.000824]
[1729838601066,0.005,67654.0,67653.0,0.075724]
[1729838601275,0.59902734,67654.0,67653.0,0.075724]
[1729838601482,0.59902756,67654.0,67653.0,0.075724]
[1729838605265,0.46640657,67654.0,67653.0,0.075724]
[1729838607405,0.152815,67652.0,67651.0,0.1]
[1729838607618,0.59904204,67652.0,67651.0,0.1]
[1729838612629,0.82331538,67652.0,67651.0,0.1]
[1729838613615,0.82531538,67652.0,67651.0,0.1]
[1729838614098,0.82331538,67652.0,67651.0,0.1]
[1729838616769,0.82343052,67652.0,67651.0,0.1]
[1729838623132,0.82343052,67652.0,67651.0,0.100824]
[1729838626458,0.72693166,67652.0,67651.0,0.100824]
[1729838627610,0.72893166,67652.0,67651.0,0.100824]
[1729838628307,0.72693166,67652.0,67651.0,0.100824]
[1729838629216,0.152832,67644.0,67643.0,0.22040187]
[1729838629426,0.65480748,67644.0,67643.0,0.22040187]
[1729838629695,0.105,67643.0,67642.0,0.083836]
[1729838629971,0.56644685,67643.0,67642.0,0.083836]
[1729838630212,0.40333781,67643.0,67642.0,0.083836]
[1729838630932,0.40333781,67643.0,67642.0,0.182536]
[1729838639242,0.56642788,67643.0,67642.0,0.182536]
[1729838640550,0.40333781,67643.0,67642.0,0.182536]
[1729838640824,0.56643487,67643.0,67642.0,0.182536]
[1729838646570,0.67689214,67643.0,67642.0,0.182536]
[1729838646781,0.40333781,67643.0,67642.0,0.182536]
[1729838646989,0.67695451,67643.0,67642.0,0.182536]
[1729838647410,0.56647206,67643.0,67642.0,0.182536]
[1729838648534,0.67695451,67643.0,67642.0,0.182536]
[1729838649222,0.46147206,67643.0,67642.0,0.182536]
[1729838649868,0.54987371,67643.0,67642.0,0.182536]
[1729838650521,0.46147206,67643.0,67642.0,0.182536]
[1729838653528,0.57195451,67643.0,67642.0,0.182536]
[1729838655480,0.46147206,67643.0,67642.0,0.182536]
[1729838656374,0.46097206,67643.0,67642.0,0.182536]
[1729838657848,0.46097206,67643.0,67626.0,0.01143185]
[1729838658062,0.147854,67635.0,67634.0,0.22040187]
[1729838658470,0.147854,67635.0,67633.0,0.10394002]
[1729838658725,0.295691,67638.0,67633.0,0.10394002]
[1729838658954,0.147854,67635.0,67633.0,0.10394002]
[1729838659161,0.147854,67634.0,67633.0,0.10394002]
[1729838660414,0.15050381,67637.0,67633.0,0.10394002]
[1729838660634,0.147854,67634.0,67633.0,0.10394002]
[1729838661095,0.147854,67634.0,67633.0,0.28084002]
[1729838663528,0.147854,67634.0,67633.0,0.2854627]
[1729838666220,0.147854,67634.0,67633.0,0.28084002]
[1729838666426,0.147854,67634.0,67633.0,0.2854627]
[1729838667560,0.147854,67634.0,67633.0,0.18152268]
[1729838672280,0.147854,67634.0,67633.0,0.2854627]
[1729838672943,0.147851,67636.0,67633.0,0.2854627]
[1729838673166,0.15050381,67636.0,67634.0,0.00462268]
[1729838673629,0.29835381,67636.0,67635.0,0.00462268]
[1729838675051,0.15050381,67636.0,67635.0,0.00462268]
[1729838675262,0.29835381,67636.0,67635.0,0.00462268]
[1729838675715,0.29835381,67636.0,67633.0,0.28084002]
[1729838675980,0.15050381,67636.0,67633.0,0.28084002]
[1729838676672,0.29835381,67636.0,67633.0,0.28084002]
[1729838677134,0.147852,67635.0,67633.0,0.28084002]
[1729838677355,0.15050381,67636.0,67633.0,0.28084002]
[1729838677608,0.29835581,67636.0,67633.0,0.28084002]
[1729838678532,0.15050381,67636.0,67633.0,0.28084002]
[1729838678766,0.14785,67636.0,67633.0,0.28084002]
[1729838679896,0.04423937,67637.0,67633.0,0.28084002]
[1729838680103,0.19474318,67637.0,67633.0,0.1769]
[1729838680322,0.19474318,67637.0,67634.0,0.10394002]
[1729838680529,0.147851,67636.0,67634.0,0.10394002]
[1729838681385,0.147852,67635.0,67634.0,0.10394002]
[1729838682513,0.19474413,67637.0,67634.0,0.10394002]
[1729838682743,0.14785,67636.0,67634.0,0.10394002]
[1729838682955,0.147852,67635.0,67634.0,0.10394002]
[1729838684695,0.001648,67636.0,67634.0,0.10394002]
[1729838684922,0.147852,67635.0,67634.0,0.10394002]
[1729838685992,0.147852,67635.0,67633.0,0.0824]
[1729838687635,0.001648,67636.0,67633.0,0.0824]
[1729838688018,0.147853,67635.0,67633.0,0.0824]
[1729838688232,0.147854,67634.0,67633.0,0.0824]
[1729838692310,0.147854,67634.0,67633.0,0.0817]
[1729838693531,0.147854,67634.0,67631.0,0.10394002]
[1729838693795,0.147855,67634.0,67631.0,0.10394002]
[1729838694109,0.295704,67635.0,67631.0,0.10394002]
[1729838694110,0.147858,67633.0,67631.0,0.10394002]
[1729838694976,0.147855,67634.0,67631.0,0.10394002]
[1729838695193,0.147857,67633.0,67631.0,0.10394002]
[1729838702093,0.147858,67633.0,67631.0,0.10394002]
[1729838702309,0.147859,67632.0,67631.0,0.10394002]
[1729838704209,0.147859,67632.0,67629.0,0.0788]
[1729838704420,0.147863,67630.0,67629.0,0.0788]
[1729838704631,0.14786,67632.0,67629.0,0.0788]
[1729838705288,0.14786,67632.0,67620.0,0.000824]
[1729838705289,0.147882,67622.0,67620.0,0.000824]
[1729838705548,0.147883,67621.0,67620.0,0.000824]
[1729838705963,0.147881,67622.0,67620.0,0.000824]
[1729838706398,0.147883,67621.0,67620.0,0.000824]
[1729838711554,0.29838681,67621.0,67620.0,0.000824]
[1729838733164,0.39718681,67621.0,67620.0,0.000824]
[1729838734255,0.60283069,67621.0,67620.0,0.000824]
[1729838734453,0.50638681,67621.0,67620.0,0.000824]
[1729838736773,0.48338681,67621.0,67620.0,0.000824]
[1729838738295,0.52745945,67621.0,67620.0,0.000824]
[1729838738526,0.48338681,67621.0,67620.0,0.000824]
[1729838739593,0.52745754,67621.0,67620.0,0.000824]
[1729838739848,0.48338681,67621.0,67620.0,0.000824]
[1729838740270,0.5274569,67621.0,67620.0,0.000824]
[1729838740482,0.63259151,67621.0,67620.0,0.000824]
[1729838740710,0.54949578,67621.0,67620.0,0.000824]
[1729838741360,0.50638681,67621.0,67620.0,0.000824]
[1729838741566,0.57249578,67621.0,67620.0,0.000824]
[1729838742412,0.67249578,67621.0,67620.0,0.000824]
[1729838743467,0.7764358,67621.0,67620.0,0.000824]
[1729838745149,0.71032683,67621.0,67620.0,0.000824]
[1729838745817,0.60638681,67621.0,67620.0,0.000824]
[1729838746685,0.58338681,67621.0,67620.0,0.000824]
[1729838747371,0.64949207,67621.0,67620.0,0.000824]
[1729838747655,0.58338681,67621.0,67620.0,0.000824]
[1729838747891,0.62379877,67621.0,67620.0,0.000824]
[1729838748308,0.78852186,67621.0,67620.0,0.000824]
[1729838749781,0.87666656,67621.0,67620.0,0.000824]
[1729838750976,0.89966656,67621.0,67620.0,0.000824]
[1729838751338,0.81152186,67621.0,67620.0,0.000824]
[1729838751967,0.80952186,67621.0,67620.0,0.000824]
[1729838752420,0.81152186,67621.0,67620.0,0.000824]
[1729838753054,0.78852186,67621.0,67620.0,0.000824]
[1729838754117,0.89246188,67621.0,67620.0,0.000824]
[1729838754316,1.00264276,67621.0,67620.0,0.000824]
[1729838754735,1.00064276,67621.0,67620.0,0.000824]
[1729838754919,0.89046188,67621.0,67620.0,0.000824]
[1729838755389,0.89670274,67621.0,67620.0,0.000824]
[1729838755847,0.7461099,67621.0,67620.0,0.000824]
[1729838756072,0.67001196,67621.0,67620.0,0.000824]
[1729838756938,0.57121196,67621.0,67620.0,0.000824]
[1729838758869,0.56621196,67621.0,67620.0,0.000824]
[1729838759120,0.56627041,67621.0,67620.0,0.000824]
[1729838759348,0.40338681,67621.0,67620.0,0.000824]
[1729838759578,0.56627825,67621.0,67620.0,0.000824]
[1729838759815,0.65453032,67621.0,67620.0,0.000824]
[1729838760028,0.56627825,67621.0,67620.0,0.000824]
[1729838763683,0.65455875,67621.0,67620.0,0.000824]
[1729838763905,0.767071,67621.0,67620.0,0.000824]
[1729838764115,0.76581827,67621.0,67620.0,0.000824]
[1729838764534,0.87613138,67621.0,67620.0,0.000824]
[1729838765394,0.76585827,67621.0,67620.0,0.000824]
[1729838765829,0.76585827,67621.0,67606.0,0.000836]
[1729838765830,0.157913,67607.0,67606.0,0.000836]
[1729838766065,0.30841681,67607.0,67606.0,0.000836]
[1729838766287,0.47133723,67607.0,67606.0,0.000836]
[1729838766507,0.494491,67607.0,67606.0,0.000836]
[1729838769340,0.33157058,67607.0,67606.0,0.000836]
[1729838769564,0.49461262,67607.0,67606.0,0.000836]
[1729838772321,0.81701449,67607.0,67606.0,0.000836]
[1729838772520,0.59661262,67607.0,67606.0,0.000836]
[1729838772808,0.59461262,67607.0,67606.0,0.000836]
[1729838773020,0.79380263,67607.0,67606.0,0.000836]
[1729838773224,0.70503263,67607.0,67606.0,0.000836]
[1729838773432,0.59461262,67607.0,67606.0,0.000836]
[1729838773836,0.70047811,67607.0,67606.0,0.000836]
[1729838774046,0.72363287,67607.0,67606.0,0.000836]
[1729838774675,0.43122221,67607.0,67606.0,0.000836]
[1729838775527,0.42622221,67607.0,67606.0,0.000836]
[1729838775787,0.40306745,67607.0,67606.0,0.000836]
[1729838775994,0.40310745,67607.0,67606.0,0.000836]
[1729838776428,0.654627,67607.0,67606.0,0.000836]
[1729838776665,0.41832827,67607.0,67606.0,0.000836]
[1729838777049,0.56624127,67607.0,67606.0,0.000836]
[1729838777486,0.41832827,67607.0,67606.0,0.000836]
[1729838777671,0.56624127,67607.0,67606.0,0.000836]
[1729838777895,0.41832827,67607.0,67606.0,0.000836]
[1729838778165,0.56624127,67607.0,67606.0,0.000836]
[1729838778547,0.41832827,67607.0,67606.0,0.000836]
[1729838778754,0.56624127,67607.0,67606.0,0.000836]
[1729838780213,0.31832827,67607.0,67606.0,0.000836]
[1729838780435,0.16317382,67607.0,67606.0,0.10477602]
[1729838780649,4e-05,67607.0,67606.0,0.38491604]
[1729838780861,4e-05,67607.0,67606.0,0.42889102]
[1729838781099,4e-05,67607.0,67606.0,0.53283104]
[1729838781774,4e-05,67607.0,67606.0,0.42889102]
[1729838782481,4e-05,67607.0,67606.0,0.63712042]
[1729838782693,4e-05,67607.0,67606.0,0.5381804]
[1729838782898,4e-05,67607.0,67606.0,0.5431804]
[1729838786962,4e-05,67607.0,67606.0,0.66066779]
[1729838787177,0.22040187,67619.0,67618.0,0.53426904]
[1729838787854,4e-05,67621.0,67620.0,0.147885]
[1729838788084,4e-05,67621.0,67620.0,0.230685]
[1729838798459,8e-05,67621.0,67620.0,0.23364211]
[1729838798670,8e-05,67621.0,67620.0,0.323085]
[1729838798880,8e-05,67621.0,67620.0,0.32343436]
[1729838799320,8e-05,67621.0,67620.0,0.61087819]
[1729838799725,8e-05,67621.0,67620.0,0.61287819]
[1729838799927,0.001728,67621.0,67620.0,0.61087819]
[1729838800951,0.22204987,67633.0,67632.0,0.147859]
[1729838801207,0.22204987,67633.0,67632.0,0.43383904]
[1729838801453,0.001648,67633.0,67632.0,0.43383904]
[1729838806259,0.001648,67633.0,67632.0,0.4473752]
[1729838807918,0.001648,67633.0,67632.0,0.5384752]
[1729838821460,0.001648,67633.0,67632.0,0.6384752]
[1729838821663,0.001648,67633.0,67632.0,0.82232837]
[1729838821975,0.001648,67633.0,67632.0,0.82432837]
[1729838822198,0.001648,67633.0,67632.0,0.82232837]
[1729838822899,0.001648,67633.0,67632.0,0.92626839]
[1729838823114,0.001648,67633.0,67632.0,0.82232837]
[1729838824083,0.001648,67633.0,67632.0,0.33594452]
[1729838824265,0.001648,67633.0,67629.0,0.295727]
[1729838824492,0.001648,67633.0,67624.0,0.10394002]
[1729838824708,0.14786,67632.0,67627.0,0.10394002]
[1729838824958,0.001648,67633.0,67621.0,0.000824]
[1729838824959,0.295736,67628.0,67621.0,0.000824]
[1729838825167,0.001648,67633.0,67624.0,0.10394002]
[1729838825168,0.147864,67630.0,67624.0,0.10394002]
[1729838825371,0.0795,67632.0,67624.0,0.10394002]
[1729838825614,0.147864,67630.0,67624.0,0.10394002]
[1729838825821,0.37522,67632.0,67624.0,0.10394002]
[1729838826020,0.0795,67632.0,67624.0,0.10394002]
[1729838826192,0.147866,67629.0,67624.0,0.10394002]
[1729838826411,0.147866,67629.0,67622.0,0.17612497]
[1729838826723,0.147862,67631.0,67625.0,0.147873]
[1729838826898,0.0795,67632.0,67623.0,0.14822636]
[1729838826899,0.147863,67630.0,67623.0,0.14822636]
[1729838827102,0.37522,67632.0,67622.0,0.17612497]
[1729838827285,0.147865,67630.0,67622.0,0.17612497]
[1729838827682,0.0795,67632.0,67622.0,0.17647433]
[1729838827887,0.147861,67631.0,67625.0,0.147873]
[1729838828514,0.147861,67631.0,67623.0,0.29610436]
[1729838828515,0.0795,67632.0,67623.0,0.00034936]
[1729838828721,0.227359,67632.0,67626.0,0.15120939]
[1729838829182,0.147862,67631.0,67626.0,0.15120939]
[1729838829827,0.0795,67632.0,67628.0,0.147866]
[1729838830033,0.0795,67632.0,67626.0,0.15120939]
[1729838830244,0.147863,67630.0,67626.0,0.15120939]
[1729838830874,0.227359,67632.0,67626.0,0.15120939]
[1729838831078,0.147864,67630.0,67626.0,0.29908039]
[1729838831840,0.147864,67630.0,67626.0,0.15120939]
[1729838832470,0.147864,67630.0,67626.0,0.29908039]
[1729838832630,0.147865,67629.0,67626.0,0.15120939]
[1729838833045,0.0795,67632.0,67626.0,0.15120939]
[1729838833343,0.147864,67630.0,67626.0,0.15120939]
[1729838833547,0.147864,67630.0,67626.0,0.29908139]
[1729838833846,0.147864,67630.0,67626.0,0.15120939]
[1729838834046,0.44622981,67630.0,67621.0,0.15203339]
[1729838834302,0.147878,67623.0,67621.0,0.000824]
[1729838834669,0.295735,67628.0,67621.0,0.000824]
[1729838834670,0.295744,67626.0,67621.0,0.000824]
[1729838834845,0.147875,67625.0,67621.0,0.000824]
[1729838835046,0.147879,67623.0,67621.0,0.000824]
[1729838835248,0.147875,67625.0,67621.0,0.000824]
[1729838835473,0.295744,67626.0,67621.0,0.000824]
[1729838835671,0.14788,67622.0,67621.0,0.000824]
[1729838835879,0.147878,67624.0,67621.0,0.000824]
[1729838836651,0.295735,67628.0,67621.0,0.000824]
[1729838836851,0.147872,67626.0,67621.0,0.000824]
[1729838837575,0.147872,67626.0,67621.0,0.148706]
[1729838838006,0.15050381,67627.0,67622.0,0.15120939]
[1729838838209,0.001648,67633.0,67627.0,0.295739]
[1729838838409,0.15215181,67633.0,67630.0,0.15120939]
[1729838838631,0.30000881,67633.0,67630.0,0.15120939]
[1729838839319,0.15215181,67633.0,67627.0,0.147869]
[1729838839540,0.147861,67631.0,67627.0,0.147869]
[1729838840340,0.44786581,67633.0,67626.0,0.15120939]
[1729838840475,0.147862,67631.0,67626.0,0.29908039]
[1729838841116,0.44786581,67633.0,67626.0,0.29908039]
[1729838841319,0.147862,67631.0,67626.0,0.29908039]
[1729838841783,0.295718,67632.0,67626.0,0.29908039]
[1729838841930,0.147863,67630.0,67626.0,0.29908039]
[1729838842126,0.295718,67632.0,67624.0,0.147874]
[1729838842467,0.147868,67628.0,67624.0,0.147874]
[1729838843089,0.295718,67632.0,67623.0,0.147878]
[1729838843319,0.147868,67628.0,67623.0,0.147878]
[1729838844254,0.147868,67628.0,67624.0,0.147875]
[1729838844441,0.295722,67631.0,67624.0,0.147874]
[1729838844642,0.147866,67629.0,67624.0,0.147874]
[1729838844987,0.147866,67629.0,67625.0,0.147874]
[1729838845191,0.15215181,67633.0,67623.0,0.295756]
[1729838845414,0.147865,67629.0,67624.0,0.147876]
[1729838846423,0.147865,67629.0,67626.0,0.10418207]
[1729838846849,0.295726,67630.0,67626.0,0.10418207]
[1729838847062,0.147866,67629.0,67626.0,0.10418207]
[1729838847264,3.29,67628.0,67623.0,0.10418207]
[1729838847474,0.147872,67626.0,67623.0,0.10418207]
[1729838847648,3.585735,67628.0,67623.0,0.10418207]
[1729838847865,3.437869,67628.0,67623.0,0.25206007]
[1729838848302,3.29,67628.0,67623.0,0.10418207]
[1729838848521,3.437869,67628.0,67623.0,0.25205907]
[1729838849799,3.29,67628.0,67623.0,0.10418207]
[1729838850041,3.44050381,67628.0,67618.0,0.147888]
[1729838850221,0.14788,67622.0,67619.0,0.00034936]
[1729838851808,0.147878,67623.0,67619.0,0.14823536]
[1729838852005,0.14788,67622.0,67618.0,0.00034936]
[1729838852209,0.14788,67622.0,67606.0,0.000836]
[1729838852210,0.14788,67622.0,67610.0,0.22075123]
[1729838852441,0.29838381,67622.0,67611.0,0.08144936]
[1729838852638,0.29838381,67622.0,67611.0,0.18563143]
[1729838852844,0.29838381,67622.0,67612.0,0.147901]
[1729838853181,0.29838381,67622.0,67613.0,0.147899]
[1729838853366,0.29838381,67622.0,67611.0,0.18563143]
[1729838853593,0.29838381,67622.0,67613.0,0.147899]
[1729838853824,0.29838381,67622.0,67614.0,0.147897]
[1729838854477,0.29838381,67622.0,67614.0,0.25207907]
[1729838854609,0.29838381,67622.0,67614.0,0.10418207]
[1729838855968,0.29838381,67622.0,67617.0,0.10418207]
[1729838856311,0.29838381,67622.0,67620.0,0.10418207]
[1729838859448,0.29838381,67622.0,67617.0,0.10418207]
[1729838863015,0.29838381,67622.0,67613.0,0.25208107]
[1729838863609,0.29838381,67622.0,67614.0,0.147897]
[1729838863805,0.29838381,67622.0,67613.0,0.10418207]
[1729838864430,0.29838381,67622.0,67613.0,0.25208107]
[1729838864653,0.29838381,67622.0,67613.0,0.10418207]
[1729838866153,0.29838381,67622.0,67613.0,0.25208207]
[1729838868830,0.29838381,67622.0,67614.0,0.147897]
[1729838869826,0.29838381,67622.0,67613.0,0.10418207]
[1729838870647,0.34250887,67622.0,67613.0,0.10418207]
[1729838870821,0.34250887,67622.0,67611.0,0.22935336]
[1729838871027,0.34250887,67622.0,67612.0,0.147902]
[1729838872052,0.34259341,67622.0,67612.0,0.147902]
[1729838872407,0.34424141,67622.0,67613.0,0.10418207]
[1729838875957,0.34424141,67622.0,67606.0,0.3096536]
[1729838875958,0.51434141,67622.0,67606.0,0.3096536]
[1729838876167,0.7313777,67622.0,67607.0,0.22122587]
[1729838876369,0.64295849,67622.0,67607.0,0.22122587]
[1729838876575,0.75348251,67622.0,67607.0,0.22122587]
[1729838877518,0.75344213,67622.0,67607.0,0.22122587]
[1729838880061,0.76725787,67622.0,67607.0,0.22122587]
[1729838880934,0.68645787,67622.0,67609.0,0.0984]
[1729838881138,0.68645787,67622.0,67611.0,0.0789]
[1729838881556,0.57597423,67622.0,67611.0,0.0789]
[1729838883358,0.66432666,67622.0,67611.0,0.0789]
[1729838884751,0.66421017,67622.0,67611.0,0.0789]
[1729838886606,0.56991017,67622.0,67611.0,0.0789]
[1729838887028,0.56991017,67622.0,67611.0,0.226804]
[1729838887460,0.56991017,67622.0,67611.0,0.0789]
[1729838889600,0.56991017,67622.0,67611.0,0.226803]
[1729838889814,0.56991017,67622.0,67607.0,0.51705087]
[1729838889815,0.26687572,67622.0,67621.0,0.078224]
[1729838890057,0.26687572,67622.0,67621.0,0.42863843]
[1729838890058,0.001648,67622.0,67621.0,0.42863843]
[1729838890512,0.001648,67622.0,67621.0,0.078224]
[1729838890513,0.149528,67622.0,67621.0,0.078224]
[1729838890649,0.149528,67622.0,67621.0,0.000824]
[1729838894213,0.30968245,67622.0,67621.0,0.000824]
[1729838894426,0.66181866,67622.0,67621.0,0.000824]
[1729838894774,0.68390434,67622.0,67621.0,0.000824]
[1729838895219,0.66181866,67622.0,67621.0,0.000824]
[1729838895469,0.58331866,67622.0,67621.0,0.000824]
[1729838897042,0.48651866,67622.0,67621.0,0.000824]
[1729838898652,0.48657231,67622.0,67621.0,0.000824]
[1729838901973,0.48654638,67622.0,67621.0,0.000824]
[1729838902448,0.47274204,67622.0,67621.0,0.000824]
[1729838902811,0.48654975,67622.0,67621.0,0.000824]
[1729838903319,0.48655216,67622.0,67621.0,0.000824]
[1729838909801,0.50864911,67622.0,67621.0,0.000824]
[1729838910279,0.48655393,67622.0,67621.0,0.000824]
[1729838912317,0.50372678,67622.0,67621.0,0.000824]
[1729838912997,0.5037091,67622.0,67621.0,0.000824]
[1729838913462,0.48653625,67622.0,67621.0,0.000824]
[1729838914952,0.58553625,67622.0,67621.0,0.000824]
[1729838915151,0.60763143,67622.0,67621.0,0.000824]
[1729838916426,0.71187719,67622.0,67621.0,0.000824]
[1729838920406,0.69806263,67622.0,67621.0,0.000824]
[1729838920613,0.77103994,67622.0,67621.0,0.000824]
[1729838921225,0.77303994,67622.0,67621.0,0.000824]
[1729838922090,1.10979156,67622.0,67621.0,0.000824]
[1729838922501,0.97730849,67622.0,67621.0,0.000824]
[1729838923569,0.97530849,67622.0,67621.0,0.000824]
[1729838924008,0.98885075,67622.0,67621.0,0.000824]
[1729838924413,1.12135458,67622.0,67621.0,0.000824]
[1729838925286,1.27185839,67622.0,67621.0,0.000824]
[1729838925529,1.12135458,67622.0,67621.0,0.000824]
[1729838927116,0.9888105,67622.0,67621.0,0.000824]
[1729838927329,1.12130217,67622.0,67621.0,0.000824]
[1729838927532,1.10775991,67622.0,67621.0,0.000824]
[1729838927950,1.10778513,67622.0,67621.0,0.000824]
[1729838928994,1.10778513,67622.0,67608.0,0.22040187]
[1729838928995,0.152909,67609.0,67608.0,0.22040187]
[1729838929217,0.69954426,67609.0,67608.0,0.22040187]
[1729838929434,0.6112577,67609.0,67608.0,0.22040187]
[1729838929633,0.152911,67608.0,67607.0,0.000824]
[1729838929845,0.5023633,67608.0,67607.0,0.000824]
[1729838930050,0.50701394,67608.0,67607.0,0.000824]
[1729838931518,0.47109231,67608.0,67607.0,0.000824]
[1729838931735,0.3439445,67608.0,67607.0,0.000824]
[1729838931959,0.50684526,67608.0,67607.0,0.000824]
[1729838933000,0.76159483,67608.0,67607.0,0.000824]
[1729838933210,0.65734907,67608.0,67607.0,0.000824]
[1729838934253,1.1544967,67608.0,67607.0,0.000824]
[1729838934465,1.03209483,67608.0,67607.0,0.000824]
[1729838935286,0.99621578,67608.0,67607.0,0.000824]
[1729838935491,1.03206422,67608.0,67607.0,0.000824]
[1729838935898,0.92781846,67608.0,67607.0,0.000824]
[1729838936106,0.77731465,67608.0,67607.0,0.000824]
[1729838936516,0.77720818,67608.0,67607.0,0.000824]
[1729838940144,0.70030818,67608.0,67607.0,0.000824]
[1729838940792,0.70028374,67608.0,67607.0,0.000824]
[1729838941810,0.85078755,67608.0,67607.0,0.000824]
[1729838942237,0.70028374,67608.0,67607.0,0.000824]
[1729838942933,0.76868106,67608.0,67607.0,0.000824]
[1729838943142,0.8044964,67608.0,67607.0,0.000824]
[1729838944028,0.15757464,67602.0,67601.0,0.22123787]
[1729838944249,0.41232421,67602.0,67601.0,0.22123787]
[1729838944478,0.42609934,67602.0,67601.0,0.000836]
[1729838944687,0.48528734,67602.0,67601.0,0.000836]
[1729838945136,0.55139703,67602.0,67601.0,0.000836]
[1729838946045,0.57688734,67602.0,67601.0,0.000836]
[1729838946248,0.66503393,67602.0,67601.0,0.000836]
[1729838946458,0.6512588,67602.0,67601.0,0.000836]
[1729838946680,0.66503476,67602.0,67601.0,0.000836]
[1729838950400,0.6650272,67602.0,67601.0,0.000836]
[1729838951258,0.5734272,67602.0,67601.0,0.000836]
[1729838952718,0.46918144,67602.0,67601.0,0.000836]
[1729838952930,0.44214452,67602.0,67601.0,0.000836]
[1729838953128,0.31220088,67602.0,67601.0,0.000836]
[1729838953411,0.31685152,67602.0,67601.0,0.000836]
[1729838953587,0.36090442,67602.0,67601.0,0.000836]
[1729838953791,0.31685152,67602.0,67601.0,0.000836]
[1729838953998,0.31686584,67602.0,67601.0,0.000836]
[1729838954199,0.3122152,67602.0,67601.0,0.000836]
[1729838954834,0.31686584,67602.0,67601.0,0.000836]
[1729838957899,0.36091874,67602.0,67601.0,0.000836]
[1729838958107,0.36093327,67602.0,67601.0,0.000836]
[1729838958945,0.35628263,67602.0,67601.0,0.000836]
[1729838959153,0.36093327,67602.0,67601.0,0.000836]
[1729838961240,0.31688037,67602.0,67601.0,0.000836]
[1729838961673,0.30307845,67602.0,67601.0,0.000836]
[1729838961985,0.3168894,67602.0,67601.0,0.000836]
[1729838962400,0.3830187,67602.0,67601.0,0.000836]
[1729838962869,0.35633137,67602.0,67601.0,0.000836]
[1729838963060,0.01381095,67602.0,67601.0,0.083036]
[1729838963272,0.01381095,67604.0,67601.0,0.177036]
[1729838963483,0.147924,67602.0,67601.0,0.177036]
[1729838964138,0.147922,67604.0,67601.0,0.094836]
[1729838964344,0.295829,67607.0,67601.0,0.094836]
[1729838964345,0.443754,67605.0,67602.0,0.0822]
[1729838964561,0.147922,67603.0,67602.0,0.0822]
[1729838969103,0.29842581,67603.0,67602.0,0.0822]
[1729838969518,0.35631273,67603.0,67602.0,0.0822]
[1729838973314,0.31221538,67603.0,67602.0,0.0822]
[1729838974181,0.37836883,67603.0,67602.0,0.0822]
[1729838975537,0.37836883,67603.0,67601.0,0.000836]
[1729838975538,0.147924,67602.0,67601.0,0.000836]
[1729838975736,0.29842781,67602.0,67601.0,0.000836]
[1729838977875,0.04413193,67605.0,67602.0,0.0757]
[1729838978078,0.147922,67603.0,67602.0,0.1672]
[1729838978287,0.29842581,67603.0,67602.0,0.1672]
[1729838980611,0.19204993,67605.0,67602.0,0.1672]
[1729838980819,0.04413193,67605.0,67602.0,0.315123]
[1729838981487,0.05792561,67605.0,67602.0,0.1672]
[1729838981828,0.05792561,67605.0,67603.0,0.0757]
[1729838982024,0.149564,67606.0,67603.0,0.0757]
[1729838982025,0.001648,67606.0,67605.0,0.147918]
[1729838982275,0.001648,67606.0,67605.0,0.223618]
[1729838983949,0.001648,67606.0,67605.0,0.32786376]
[1729838984155,0.001648,67606.0,67605.0,0.223618]
[1729838985126,0.001648,67606.0,67605.0,0.0757]
[1729838985756,0.001648,67606.0,67605.0,0.41996376]
[1729838985959,0.001648,67606.0,67605.0,0.44296376]
[1729838989349,0.001648,67606.0,67605.0,0.54720952]
[1729838989563,0.001648,67606.0,67605.0,0.55755888]
[1729838990596,0.001648,67606.0,67605.0,0.45331312]
[1729838991224,0.001648,67606.0,67605.0,0.55755888]
[1729838991457,0.001648,67606.0,67605.0,0.65755888]
[1729838992281,0.001648,67606.0,67605.0,0.80806269]
[1729838996318,0.001648,67606.0,67605.0,0.81006269]
[1729838996550,0.001648,67606.0,67605.0,0.91430845]
[1729838996754,0.001648,67606.0,67605.0,1.45215169]
[1729838997150,0.001648,67606.0,67605.0,1.16545069]
[1729838997787,0.001648,67606.0,67605.0,1.16345069]
[1729838999046,0.22040187,67619.0,67618.0,0.36093836]
[1729838999251,0.22040187,67619.0,67618.0,0.71993369]
[1729838999459,0.001648,67621.0,67620.0,0.25823436]
[1729838999672,0.001648,67621.0,67620.0,0.45873436]
[1729839000092,0.001648,67621.0,67620.0,0.60923817]
[1729839000737,0.001648,67621.0,67620.0,0.82964004]
[1729839000945,0.001648,67621.0,67620.0,0.60923817]
[1729839003476,0.001648,67621.0,67620.0,0.81772969]
[1729839004582,0.001648,67621.0,67620.0,0.8310891]
[1729839010419,0.001648,67621.0,67620.0,0.72684334]
[1729839010617,0.001648,67621.0,67620.0,0.57895834]
[1729839010822,0.001648,67621.0,67620.0,0.47471258]
[1729839011004,0.001648,67621.0,67620.0,0.57895834]
[1729839014869,0.007648,67621.0,67620.0,0.57895834]
[1729839015066,0.007648,67621.0,67620.0,0.6832041]
[1729839015727,0.007648,67621.0,67620.0,0.6852041]
[1729839017215,0.007648,67621.0,67620.0,0.6832041]
[1729839017798,0.007648,67621.0,67620.0,0.6852041]
[1729839019128,0.001648,67622.0,67621.0,0.01234936]
[1729839019305,0.001648,67625.0,67621.0,0.01234936]
[1729839019306,0.001648,67625.0,67624.0,0.52094088]
[1729839019514,0.001648,67625.0,67624.0,0.67144469]
[1729839019715,0.22040187,67634.0,67627.0,0.01234936]
[1729839019909,0.22040187,67634.0,67627.0,0.66854469]
[1729839020312,0.001648,67635.0,67627.0,0.66654469]
[1729839020509,0.001648,67635.0,67627.0,0.66854469]
[1729839020710,0.001648,67635.0,67627.0,0.66654469]
[1729839021295,0.001648,67635.0,67627.0,0.66854469]
[1729839022192,0.001648,67635.0,67627.0,0.66654469]
[1729839025241,3.21770995,67628.0,67627.0,0.66654469]
[1729839025496,2.72582505,67628.0,67627.0,1.90382468]
[1729839025699,2.72582505,67628.0,67627.0,3.91655468]